bitfinex-derivatives/quotes_SOLF0:USTF0_20250111
["timestamp","ask_amount","ask_price","bid_price","bid_amount"]
[1736584501335,2.6868,186.14,186.12,7.16109254]
[1736584504029,7.16109254,186.19,186.12,7.16109254]
[1736584504229,1.5815,186.23,186.09,7.16109254]
[1736584504230,7.16109254,186.17,186.09,7.16109254]
[1736584504734,8.69339254,186.17,186.09,7.16109254]
[1736584505135,2.6873,186.11,186.09,7.16109254]
[1736584507437,2.6873,186.11,186.06,2.6878]
[1736584507630,2.6874,186.1,186.05,54.85393128]
[1736584507935,2.6874,186.1,186.08,7.16109254]
[1736584508938,2.6875,186.09,186.08,7.16109254]
[1736584509140,2.6875,186.09,186.05,52.16593128]
[1736584509536,7.16109254,186.13,186.06,7.16109254]
[1736584509743,2.6876,186.08,186.06,7.16109254]
[1736584510152,2.6876,186.08,186.05,52.16593128]
[1736584510442,7.16109254,186.11,186.03,7.16109254]
[1736584510641,1.5808,186.1,186.03,7.16109254]
[1736584510842,1.5808,186.1,186.05,7.16109254]
[1736584511543,2.6876,186.09,186.05,7.16109254]
[1736584512445,2.6876,186.09,186.07,7.16109254]
[1736584513943,1.5808,186.1,185.99,102.57826514]
[1736584514146,2.6877,186.08,186.02,2.6885]
[1736584514342,1.5808,186.1,185.99,59.59368327]
[1736584514543,2.6879,186.07,186.03,7.16109254]
[1736584514845,7.16109254,186.09,186.03,7.16109254]
[1736584515245,7.16109254,186.09,185.99,59.59368327]
[1736584515444,7.16109254,186.09,186.01,7.16109254]
[1736584515841,2.6882,186.05,186.01,7.16109254]
[1736584516039,7.16109254,186.07,185.97,7.40726821]
[1736584516245,7.16109254,186.07,186.0,7.16109254]
[1736584517948,2.6883,186.04,186.0,7.16109254]
[1736584525352,7.16109254,186.05,186.0,7.16109254]
[1736584525353,2.6884,186.03,186.0,7.16109254]
[1736584529655,7.16109254,186.05,186.0,7.16109254]
[1736584531154,2.6884,186.03,186.0,7.16109254]
[1736584534257,2.6884,186.03,185.98,7.16109254]
[1736584537059,2.6882,186.04,186.0,7.16109254]
[1736584541758,7.16109254,186.07,186.0,7.16109254]
[1736584542060,1.5808,186.1,186.04,7.16109254]
[1736584542357,8.74189254,186.1,186.04,7.16109254]
[1736584542558,2.6876,186.09,186.04,7.16109254]
[1736584543961,1.5808,186.1,186.04,7.16109254]
[1736584544163,4.2682,186.1,186.04,9.84929254]
[1736584546161,2.6874,186.1,186.06,7.16109254]
[1736584548864,4.7674,186.16,186.06,7.16109254]
[1736584549064,2.6872,186.12,186.06,7.16109254]
[1736584549261,7.16109254,186.13,186.06,7.16109254]
[1736584549564,2.6874,186.1,186.06,7.16109254]
[1736584550265,2.6875,186.09,186.06,7.16109254]
[1736584550461,7.16109254,186.13,186.01,7.40726821]
[1736584550663,7.16109254,186.11,186.03,7.16109254]
[1736584551468,2.6877,186.08,186.03,7.16109254]
[1736584553371,2.6879,186.07,186.03,7.16109254]
[1736584553571,7.16109254,186.09,186.03,7.16109254]
[1736584554270,2.6878,186.08,186.03,7.16109254]
[1736584554470,7.16109254,186.09,186.03,7.16109254]
[1736584556070,2.6879,186.07,186.03,7.16109254]
[1736584559573,1.611,186.16,186.03,7.16109254]
[1736584559873,2.6876,186.09,186.03,9.84929254]
[1736584561873,7.16109254,186.11,186.03,9.84929254]
[1736584562074,2.6876,186.08,186.03,9.84929254]
[1736584562876,2.6876,186.08,186.03,7.16109254]
[1736584565076,2.6876,186.08,186.03,9.84939254]
[1736584565476,2.6876,186.08,186.03,2.6883]
[1736584565677,7.16109254,186.09,186.02,7.16109254]
[1736584566075,7.16109254,186.07,186.0,7.16109254]
[1736584566377,7.16109254,186.05,185.98,57.55390136]
[1736584566779,2.6886,186.02,185.98,50.39280882]
[1736584567079,2.6886,186.02,185.97,7.16109254]
[1736584568479,2.6887,186.01,185.97,7.16109254]
[1736584570774,2.6885,186.02,185.99,7.16109254]
[1736584570979,7.16109254,186.05,185.99,7.16109254]
[1736584571180,10.35659254,186.07,185.99,7.16109254]
[1736584571680,2.6881,186.06,185.99,9.84989254]
[1736584571879,10.35659254,186.07,185.99,9.84989254]
[1736584573082,2.6881,186.05,185.99,9.84989254]
[1736584574780,7.16109254,186.05,185.99,7.16109254]
[1736584574986,7.16109254,186.05,185.96,2.6892]
[1736584575179,7.16109254,186.05,185.98,7.16109254]
[1736584575580,2.6884,186.03,185.98,7.16109254]
[1736584576683,2.6886,186.02,185.98,7.16109254]
[1736584576880,7.16109254,186.05,185.98,7.16109254]
[1736584578087,2.6886,186.02,185.98,7.16109254]
[1736584578786,2.6886,186.02,185.95,2.6894]
[1736584578985,2.6886,186.02,185.97,7.16109254]
[1736584579684,7.16109254,186.03,185.97,7.16109254]
[1736584580081,7.16109254,186.03,185.92,50.40453506]
[1736584580287,2.6891,185.99,185.91,102.82334739]
[1736584580483,2.6891,185.99,185.94,7.16109254]
[1736584582082,7.16109254,186.01,185.94,7.16109254]
[1736584582382,89.0,185.95,185.9,32.86566685]
[1736584582582,7.16109254,185.91,185.84,224.54898042]
[1736584582777,7.16109254,185.89,185.86,145.49446082]
[1736584583084,7.16109254,185.87,185.86,68.38548974]
[1736584583283,9.85179254,185.87,185.86,50.90538974]
[1736584583777,9.85179254,185.87,185.76,7.16109254]
[1736584583975,7.16109254,185.84,185.76,7.16109254]
[1736584584887,148.87428022,185.83,185.76,7.16109254]
[1736584585082,156.03537276,185.84,185.77,2.6921]
[1736584585484,156.03537276,185.84,185.78,1.5693]
[1736584585686,7.16109254,185.84,185.78,1.5693]
[1736584587185,7.16109254,185.84,185.78,4.2613]
[1736584590491,156.03537276,185.84,185.78,4.2613]
[1736584590893,148.87428022,185.83,185.78,4.2613]
[1736584591191,148.87428022,185.83,185.78,1.5693]
[1736584591395,148.87428022,185.83,185.76,7.16109254]
[1736584591596,148.87428022,185.82,185.76,7.16109254]
[1736584591792,148.87428022,185.83,185.76,7.16109254]
[1736584592395,148.87428022,185.83,185.77,2.6921]
[1736584592696,9.85219254,185.84,185.77,2.6921]
[1736584593301,9.85219254,185.84,185.78,7.16109254]
[1736584593491,158.72647276,185.84,185.78,7.16109254]
[1736584593995,148.87428022,185.83,185.78,7.16109254]
[1736584594302,158.72647276,185.84,185.78,7.16109254]
[1736584594996,148.87428022,185.83,185.78,7.16109254]
[1736584595197,148.87428022,185.81,185.77,7.16109254]
[1736584595898,148.87428022,185.8,185.77,7.16109254]
[1736584596099,148.87428022,185.8,185.77,9.85319254]
[1736584596498,148.87428022,185.81,185.77,9.85319254]
[1736584596895,148.87428022,185.8,185.77,9.85319254]
[1736584598499,148.87428022,185.79,185.77,9.85319254]
[1736584599600,148.87428022,185.81,185.72,5.48]
[1736584599797,148.87428022,185.8,185.76,7.16109254]
[1736584599993,148.87428022,185.8,185.74,7.16109254]
[1736584600404,2.6918,185.79,185.74,9.85359254]
[1736584600800,151.56608022,185.79,185.74,9.85359254]
[1736584601705,148.87428022,185.78,185.75,7.16109254]
[1736584601907,2.6918,185.79,185.75,7.16109254]
[1736584602105,35.4300508,185.77,185.75,7.16109254]
[1736584603309,2.6918,185.79,185.75,7.16109254]
[1736584605606,2.6918,185.79,185.75,9.85349254]
[1736584606106,2.6918,185.79,185.75,2.6924]
[1736584607508,2.6917,185.8,185.75,2.6924]
[1736584608006,7.16109254,185.81,185.7,4.7413]
[1736584608206,2.6921,185.78,185.73,2.6926]
[1736584611308,9.85289254,185.79,185.73,2.6926]
[1736584612810,9.85289254,185.79,185.72,7.16109254]
[1736584614114,9.85289254,185.79,185.73,2.6926]
[1736584615312,1.5631,185.83,185.72,7.16109254]
[1736584615512,9.85279254,185.8,185.74,2.6924]
[1736584617415,147.55742234,185.79,185.74,2.6924]
[1736584618219,147.55742234,185.79,185.74,7.16109254]
[1736584618423,147.55742234,185.79,185.76,7.16109254]
[1736584618916,8.72419254,185.83,185.78,2.692]
[1736584618917,147.55742234,185.81,185.78,2.692]
[1736584619615,8.72419254,185.83,185.77,2.6921]
[1736584620218,11.41549254,185.83,185.77,2.6921]
[1736584620420,158.97291488,185.83,185.77,2.6921]
[1736584620928,11.41549254,185.83,185.77,2.6921]
[1736584621327,158.97291488,185.83,185.77,2.6921]
[1736584621824,147.55742234,185.83,185.78,7.16109254]
[1736584622021,147.55742234,185.83,185.8,7.16109254]
[1736584622226,147.55742234,185.83,185.82,7.16109254]
[1736584622427,147.55742234,185.83,185.82,9.85249254]
[1736584622723,35.4300508,185.87,185.82,2.6914]
[1736584623022,38.1207508,185.87,185.82,2.6914]
[1736584623227,147.55742234,185.83,185.82,2.6914]
[1736584623627,147.55742234,185.83,185.81,9.85259254]
[1736584624125,147.55742234,185.83,185.81,7.16109254]
[1736584624325,147.55742234,185.83,185.8,2.6917]
[1736584624526,184.44677792,185.83,185.81,7.16109254]
[1736584625223,184.44677792,185.83,185.8,2.6917]
[1736584625519,149.8891018,185.81,185.79,7.16109254]
[1736584625923,149.8891018,185.81,185.79,9.85289254]
[1736584626122,149.8891018,185.8,185.79,9.85289254]
[1736584626927,147.3534018,185.82,185.79,7.16109254]
[1736584627227,147.3534018,185.82,185.81,9.85259254]
[1736584627423,184.44677792,185.86,185.81,7.16109254]
[1736584627627,184.44677792,185.86,185.82,2.6914]
[1736584628421,2.6908,185.86,185.82,2.6914]
[1736584628626,7.16109254,185.85,185.78,7.16109254]
[1736584629128,184.44677792,185.84,185.78,7.16109254]
[1736584629727,184.44677792,185.84,185.75,4.9074]
[1736584629923,7.16109254,185.83,185.77,7.16109254]
[1736584630734,2.6916,185.81,185.77,7.16109254]
[1736584632227,2.6916,185.81,185.75,9.85339254]
[1736584632428,223.92005583,185.86,185.75,7.16109254]
[1736584632629,9.85249254,185.83,185.78,2.692]
[1736584632828,2.6914,185.83,185.78,2.692]
[1736584638435,2.6914,185.83,185.77,2.6921]
[1736584638735,2.6916,185.81,185.71,1.6581]
[1736584638936,2.6916,185.81,185.73,7.16109254]
[1736584639136,2.6916,185.81,185.75,2.6923]
[1736584639836,2.6917,185.8,185.75,2.6923]
[1736584640037,2.6917,185.8,185.73,7.16109254]
[1736584640237,2.6917,185.8,185.74,2.6925]
[1736584640535,9.85279254,185.8,185.74,2.6925]
[1736584641429,7.16109254,185.8,185.69,3.2034]
[1736584641630,9.85319254,185.78,185.71,9.85399254]
[1736584641936,7.16109254,185.78,185.71,9.85399254]
[1736584642938,2.6922,185.77,185.71,9.85399254]
[1736584658349,2.6922,185.77,185.71,7.16109254]
[1736584658647,2.6922,185.77,185.72,2.6928]
[1736584663862,182.44738714,185.82,185.71,7.16109254]
[1736584664062,149.59869991,185.81,185.75,7.16109254]
[1736584664962,9.85249254,185.83,185.77,2.6921]
[1736584665360,9.85249254,185.83,185.77,9.85319254]
[1736584666155,2.691,185.85,185.79,2.6918]
[1736584666358,9.85209254,185.85,185.77,7.16109254]
[1736584667259,9.85209254,185.85,185.8,2.6917]
[1736584669068,9.85209254,185.85,185.79,9.85289254]
[1736584671366,7.16109254,185.85,185.79,7.16109254]
[1736584671666,7.16109254,185.85,185.81,2.6915]
[1736584672862,2.6908,185.86,185.81,2.6915]
[1736584673065,156.75979245,185.88,185.83,2.6912]
[1736584673767,7.16109254,185.88,185.83,2.6912]
[1736584674264,9.85169254,185.88,185.82,2.6914]
[1736584674567,7.16109254,185.88,185.81,7.16109254]
[1736584675469,2.6909,185.86,185.81,7.16109254]
[1736584676571,5.388,185.9,185.81,7.16109254]
[1736584676761,5.388,185.9,185.72,5.46]
[1736584676762,223.44231811,185.91,185.85,2.691]
[1736584677174,7.16109254,185.91,185.85,2.691]
[1736584677467,360.42517311,185.92,185.83,7.16109254]
[1736584677774,7.16109254,185.91,185.86,2.6908]
[1736584678276,7.16109254,185.89,185.81,7.16109254]
[1736584678768,2.6904,185.89,185.83,2.6913]
[1736584678973,9.85149254,185.89,185.83,2.6913]
[1736584680872,9.85149254,185.89,185.83,9.85239254]
[1736584684276,2.6906,185.88,185.83,7.16109254]
[1736584685777,7.16109254,185.87,185.81,7.16109254]
[1736584685978,7.16109254,185.87,185.79,7.16109254]
[1736584686376,2.691,185.85,185.79,9.85279254]
[1736584687279,2.691,185.85,185.79,7.16109254]
[1736584687574,2.691,185.85,185.8,2.6917]
[1736584688778,7.16109254,185.82,185.71,2.693]
[1736584688974,7.16109254,185.78,185.71,7.16109254]
[1736584689382,2.6922,185.77,185.71,7.16109254]
[1736584695179,2.6923,185.76,185.71,7.16109254]
[1736584695681,9.85339254,185.76,185.69,9.85439254]
[1736584696977,7.16109254,185.76,185.67,3.0754]
[1736584697183,2.6926,185.75,185.67,5.7689]
[1736584697480,2.6926,185.75,185.68,7.16109254]
[1736584698182,2.6926,185.75,185.68,9.85449254]
[1736584699882,2.6926,185.75,185.68,2.6934]
[1736584700082,2.6926,185.75,185.69,7.16109254]
[1736584700484,2.6926,185.75,185.68,2.6934]
[1736584700683,2.6926,185.75,185.69,7.16109254]
[1736584701884,2.6926,185.75,185.68,2.6934]
[1736584702081,2.6928,185.73,185.67,3.0754]
[1736584702584,2.6928,185.73,185.67,10.23649254]
[1736584704181,7.16109254,185.74,185.59,1.6477]
[1736584704383,2.693,185.71,185.67,7.16109254]
[1736584708187,7.16109254,185.72,185.62,1.622]
[1736584708385,7.16109254,185.72,185.64,7.16109254]
[1736584708984,7.16109254,185.7,185.64,7.16109254]
[1736584710087,9.85439254,185.7,185.64,7.16109254]
[1736584711484,2.6933,185.7,185.64,7.16109254]
[1736584711990,9.85409254,185.72,185.66,7.16109254]
[1736584712289,7.16109254,185.75,185.68,7.16109254]
[1736584712685,7.16109254,185.73,185.68,2.6933]
[1736584712891,7.16109254,185.73,185.65,7.16109254]
[1736584713090,5.48,185.79,185.67,7.16109254]
[1736584713290,9.85379254,185.73,185.67,9.85459254]
[1736584715192,9.85379254,185.73,185.68,2.6934]
[1736584716289,2.6927,185.73,185.68,2.6934]
[1736584716692,7.16109254,185.74,185.68,2.6934]
[1736584716894,9.85369254,185.74,185.68,2.6934]
[1736584717494,2.6924,185.76,185.7,2.6931]
[1736584717790,149.59869991,185.79,185.62,1.622]
[1736584717791,7.16109254,185.78,185.71,7.16109254]
[1736584719195,9.85319254,185.78,185.72,2.6928]
[1736584719896,7.16109254,185.78,185.72,2.6928]
[1736584720195,2.6921,185.77,185.72,2.6928]
[1736584721695,2.6921,185.77,185.71,7.16109254]
[1736584722492,2.6921,185.77,185.71,9.85409254]
[1736584723394,2.6921,185.77,185.71,2.693]
[1736584723595,2.6921,185.77,185.71,9.85409254]
[1736584730301,7.16109254,185.76,185.7,1.5694]
[1736584730504,7.16109254,185.76,185.68,10.40579254]
[1736584730702,7.16109254,185.74,185.68,3.2447]
[1736584732104,2.6928,185.73,185.68,3.2447]
[1736584733199,2.6928,185.73,185.68,1.5927]
[1736584733401,2.6931,185.71,185.6,5.46]
[1736584733603,7.16109254,185.72,185.61,1.5904]
[1736584733797,7.16109254,185.72,185.65,7.16109254]
[1736584734704,2.6932,185.7,185.65,7.16109254]
[1736584736104,2.6932,185.7,185.65,9.85499254]
[1736584736501,7.16109254,185.72,185.65,7.16109254]
[1736584736801,2.693,185.71,185.67,7.16109254]
[1736584739704,9.85399254,185.72,185.67,7.16109254]
[1736584739904,149.59869991,185.75,185.67,7.16109254]
[1736584739905,7.16109254,185.74,185.68,2.6934]
[1736584741108,9.85379254,185.74,185.68,2.6934]
[1736584744110,7.16109254,185.74,185.61,1.5904]
[1736584744312,2.6932,185.71,185.65,2.6939]
[1736584744609,2.6932,185.71,185.66,7.16109254]
[1736584747214,2.6932,185.7,185.65,2.6939]
[1736584747416,2.6932,185.7,185.65,9.85499254]
[1736584747611,7.16109254,185.72,185.65,7.16109254]
[1736584747812,2.6933,185.69,185.65,7.16109254]
[1736584748013,7.16109254,185.7,185.62,7.16109254]
[1736584749214,2.6936,185.68,185.62,9.85539254]
[1736584750312,2.6936,185.67,185.6,2.6945]
[1736584750516,7.16109254,185.7,185.62,7.16109254]
[1736584751818,2.6937,185.67,185.62,7.16109254]
[1736584752422,2.6938,185.66,185.62,7.16109254]
[1736584756921,2.6938,185.66,185.61,2.6944]
[1736584757123,2.6938,185.66,185.6,7.16109254]
[1736584757321,2.6939,185.65,185.6,7.16109254]
[1736584757519,7.16109254,185.66,185.6,7.16109254]
[1736584758120,2.694,185.64,185.6,7.16109254]
[1736584762120,2.694,185.64,185.58,4.2898]
[1736584762424,2.694,185.64,185.6,7.16109254]
[1736584763321,2.6943,185.63,185.57,2.695]
[1736584763527,7.0266,185.7,185.59,7.16109254]
[1736584763720,7.0266,185.7,185.61,7.16109254]
[1736584763921,14.18769254,185.7,185.63,7.16109254]
[1736584764525,8.74769254,185.7,185.63,7.16109254]
[1736584765125,2.6933,185.69,185.63,9.85519254]
[1736584767728,2.6933,185.69,185.63,2.6941]
[1736584767926,2.6933,185.69,185.64,7.16109254]
[1736584768828,61.92700406,185.71,185.64,7.16109254]
[1736584769125,149.59869991,185.72,185.7,7.16109254]
[1736584770128,2.6924,185.75,185.7,7.16109254]
[1736584771426,149.59869991,185.79,185.74,7.16109254]
[1736584772129,2.692,185.79,185.74,7.16109254]
[1736584772831,7.16109254,185.81,185.74,7.16109254]
[1736584773032,2.6917,185.8,185.74,9.85369254]
[1736584773324,8.83729254,185.83,185.76,7.16109254]
[1736584774133,2.6916,185.81,185.76,7.16109254]
[1736584775031,7.16109254,185.81,185.71,3.1822]
[1736584775231,7.16109254,185.79,185.71,3.1822]
[1736584775436,1.6762,185.83,185.7,8.74759254]
[1736584775437,7.16109254,185.77,185.7,8.74759254]
[1736584775631,2.6926,185.74,185.7,8.74759254]
[1736584775930,7.16109254,185.77,185.7,8.74759254]
[1736584776327,2.6925,185.75,185.7,8.74759254]
[1736584776631,7.16109254,185.77,185.7,8.74759254]
[1736584776827,9.85339254,185.77,185.7,8.74759254]
[1736584778230,9.85339254,185.77,185.7,11.44069254]
[1736584778932,2.6925,185.75,185.7,7.16109254]
[1736584783833,2.6926,185.74,185.7,7.16109254]
[1736584786835,2.6927,185.73,185.68,7.16109254]
[1736584789936,7.16109254,185.75,185.68,7.16109254]
[1736584790139,2.6929,185.72,185.68,7.16109254]
[1736584791932,7.16109254,185.73,185.66,9.85469254]
[1736584792131,2.6931,185.71,185.66,2.6936]
[1736584792339,2.6931,185.71,185.66,9.85469254]
[1736584792938,2.6931,185.71,185.66,7.16109254]
[1736584793138,2.6929,185.72,185.67,2.6936]
[1736584794636,7.16109254,185.73,185.66,7.16109254]
[1736584794936,2.6932,185.71,185.66,9.85479254]
[1736584798635,2.6932,185.71,185.67,2.6936]
[1736584798842,2.6929,185.72,185.67,2.6936]
[1736584799236,2.6929,185.72,185.68,7.16109254]
[1736584799537,2.6929,185.72,185.67,9.85469254]
[1736584802339,2.6927,185.74,185.68,2.6934]
[1736584805043,2.6927,185.74,185.68,9.85449254]
[1736584808451,2.6927,185.74,185.68,2.6934]
[1736584809454,7.16109254,185.73,185.44,16.14]
[1736584809654,2.6932,185.7,185.64,9.85509254]
[1736584814855,2.6933,185.69,185.64,9.85509254]
[1736584815359,2.6932,185.7,185.64,7.16109254]
[1736584815657,156.75979245,185.71,185.65,2.6939]
[1736584816060,7.16109254,185.71,185.65,2.6939]
[1736584817155,9.85419254,185.71,185.65,2.6939]
[1736584818958,149.59869991,185.73,185.66,7.16109254]
[1736584819259,149.59869991,185.73,185.7,7.16109254]
[1736584819661,154.98669991,185.76,185.71,2.693]
[1736584819857,149.59869991,185.76,185.71,2.693]
[1736584820058,149.59869991,185.76,185.58,5.4]
[1736584820258,149.59869991,185.76,185.69,7.16109254]
[1736584820454,2.6926,185.74,185.69,7.16109254]
[1736584820960,2.6929,185.73,185.69,7.16109254]
[1736584821454,2.6929,185.73,185.66,2.6937]
[1736584821455,2.693,185.71,185.66,2.6937]
[1736584821659,7.16109254,185.71,185.65,7.16109254]
[1736584822059,2.6932,185.7,185.65,7.16109254]
[1736584824660,9.85409254,185.71,185.65,9.85499254]
[1736584824962,149.59869991,185.72,185.65,7.16109254]
[1736584825162,159.45259245,185.73,185.67,7.16109254]
[1736584825366,9.85389254,185.73,185.67,7.16109254]
[1736584825660,9.85389254,185.73,185.67,9.85469254]
[1736584825863,7.16109254,185.68,185.59,7.16109254]
[1736584826059,7.16109254,185.66,185.59,7.16109254]
[1736584826258,9.85499254,185.66,185.59,7.16109254]
[1736584827366,2.6939,185.66,185.59,7.16109254]
[1736584827563,152.29229991,185.68,185.61,7.16109254]
[1736584828267,2.6936,185.68,185.61,7.16109254]
[1736584829067,2.6936,185.68,185.61,9.85559254]
[1736584829264,7.16109254,185.69,185.61,9.85559254]
[1736584829767,7.16109254,185.69,185.63,7.16109254]
[1736584831069,9.85439254,185.69,185.63,7.16109254]
[1736584833469,2.6933,185.69,185.63,7.16109254]
[1736584834471,2.6933,185.69,185.65,7.16109254]
[1736584835366,149.59869991,185.72,185.67,7.16109254]
[1736584835970,12.54909254,185.73,185.67,7.16109254]
[1736584836172,15.24199254,185.73,185.67,7.16109254]
[1736584836370,12.54909254,185.73,185.67,7.16109254]
[1736584838072,2.6929,185.72,185.67,7.16109254]
[1736584838874,7.16109254,185.73,185.67,7.16109254]
[1736584839070,9.85379254,185.73,185.67,7.16109254]
[1736584839271,149.59869991,185.74,185.67,7.16109254]
[1736584839471,156.61659991,185.75,185.69,7.16109254]
[1736584839670,154.98669991,185.75,185.69,7.16109254]
[1736584839869,154.98669991,185.75,185.71,7.16109254]
[1736584840073,5.388,185.75,185.73,7.16109254]
[1736584840778,149.59869991,185.82,185.68,5.48]
[1736584840972,7.16109254,185.79,185.72,7.16109254]
[1736584841975,2.6922,185.77,185.72,7.16109254]
[1736584842169,8.73009254,185.81,185.74,7.16109254]
[1736584842374,149.59869991,185.82,185.76,7.16109254]
[1736584842671,2.6916,185.81,185.76,7.16109254]
[1736584845280,7.16109254,185.83,185.76,7.16109254]
[1736584845479,2.6914,185.82,185.76,7.16109254]
[1736584845878,7.16109254,185.83,185.76,7.16109254]
[1736584846678,2.6916,185.81,185.76,7.16109254]
[1736584848079,7.16109254,185.81,185.68,5.48]
[1736584848283,7.16109254,185.79,185.72,9.85379254]
[1736584848781,7.16109254,185.79,185.74,7.16109254]
[1736584849175,2.6921,185.78,185.74,7.16109254]
[1736584851982,2.6922,185.77,185.74,7.16109254]
[1736584852183,7.16109254,185.79,185.64,3.1652]
[1736584852389,7.16109254,185.79,185.71,7.16109254]
[1736584852581,2.6926,185.75,185.71,7.16109254]
[1736584855387,149.59869991,185.84,185.73,9.85369254]
[1736584855585,7.16109254,185.81,185.73,9.85369254]
[1736584856880,7.16109254,185.81,185.65,5.46]
[1736584856881,2.6916,185.82,185.75,7.16109254]
[1736584857081,2.6916,185.82,185.77,7.16109254]
[1736584859588,1.5589,185.85,185.77,7.16109254]
[1736584859789,2.6912,185.84,185.77,7.16109254]
[1736584860285,2.6912,185.84,185.78,2.692]
[1736584860590,2.6912,185.84,185.77,7.16109254]
[1736584860886,2.6912,185.84,185.79,7.16109254]
[1736584861696,2.6912,185.84,185.79,9.85289254]
[1736584861894,1.6859,185.87,185.81,7.16109254]
[1736584862687,2.691,185.86,185.81,7.16109254]
[1736584863693,1.6026,185.89,185.81,7.16109254]
[1736584863901,2.6907,185.88,185.81,7.16109254]
[1736584864195,1.6884,185.91,185.83,7.16109254]
[1736584864400,7.16109254,185.9,185.83,7.16109254]
[1736584864599,2.6906,185.88,185.83,7.16109254]
[1736584865294,2.6904,185.9,185.83,9.85229254]
[1736584867288,2.6904,185.9,185.85,7.16109254]
[1736584868098,158.44819245,185.91,185.85,7.16109254]
[1736584868397,7.16109254,185.89,185.8,2.6916]
[1736584868601,7.16109254,185.89,185.82,7.16109254]
[1736584868798,7.16109254,185.87,185.8,7.16109254]
[1736584870099,7.16109254,185.85,185.78,7.16109254]
[1736584871101,2.6916,185.82,185.78,7.16109254]
[1736584879903,7.16109254,185.83,185.74,4.8424]
[1736584880103,7.16109254,185.83,185.75,7.16109254]
[1736584881004,156.75979245,185.83,185.75,7.16109254]
[1736584881405,7.16109254,185.83,185.74,4.8424]
[1736584881606,7.16109254,185.77,185.71,7.16109254]
[1736584882206,2.6924,185.75,185.71,7.16109254]
[1736584883606,2.6924,185.75,185.69,9.85429254]
[1736584885911,7.16109254,185.75,185.69,7.16109254]
[1736584887209,2.6929,185.72,185.67,7.16109254]
[1736584890914,2.6926,185.75,185.71,7.16109254]
[1736584896018,2.6926,185.74,185.71,7.16109254]
[1736584898422,149.59869991,185.79,185.71,7.16109254]
[1736584898619,2.6924,185.76,185.73,7.16109254]
[1736584902319,156.75979245,185.8,185.73,7.16109254]
[1736584902528,2.692,185.78,185.73,7.16109254]
[1736584902827,149.59869991,185.77,185.73,7.16109254]
[1736584903625,152.29069991,185.78,185.73,7.16109254]
[1736584905027,149.59869991,185.77,185.73,7.16109254]
[1736584905726,2.6924,185.76,185.68,2.6933]
[1736584906026,149.59869991,185.77,185.72,7.16109254]
[1736584906722,2.6924,185.75,185.72,7.16109254]
[1736584906927,149.59869991,185.77,185.72,7.16109254]
[1736584907527,149.59869991,185.76,185.72,7.16109254]
[1736584908325,152.29099991,185.76,185.72,7.16109254]
[1736584909326,152.29099991,185.76,185.74,7.16109254]
[1736584911126,152.29099991,185.76,185.71,2.693]
[1736584911330,152.29099991,185.76,185.73,7.16109254]
[1736584911633,149.59869991,185.75,185.73,7.16109254]
[1736584914131,149.59869991,185.75,185.73,9.85379254]
[1736584914331,149.59869991,185.75,185.74,7.16109254]
[1736584914829,149.59869991,185.75,185.65,1.6756]
[1736584915029,7.16109254,185.75,185.69,7.16109254]
[1736584915332,2.6931,185.7,185.69,7.16109254]
[1736584915534,149.59869991,185.72,185.67,7.16109254]
[1736584916126,149.59869991,185.7,185.47,98.3]
[1736584916330,149.59869991,185.7,185.63,7.16109254]
[1736584916838,2.6936,185.67,185.6,2.6945]
[1736584917024,2.6936,185.67,185.63,7.16109254]
[1736584917230,7.16109254,185.69,185.56,3.2116]
[1736584917231,2.6937,185.66,185.56,3.2116]
[1736584917429,2.6937,185.66,185.62,7.16109254]
[1736584920034,2.6937,185.66,185.59,2.6947]
[1736584920232,2.6937,185.66,185.6,7.16109254]
[1736584920633,152.29239991,185.66,185.6,7.16109254]
[1736584920833,2.6939,185.65,185.6,7.16109254]
[1736584921033,149.59869991,185.66,185.6,7.16109254]
[1736584921930,149.59869991,185.65,185.6,7.16109254]
[1736584922136,149.59869991,185.65,185.58,7.16109254]
[1736584922634,2.6941,185.64,185.57,2.695]
[1736584922935,149.59869991,185.65,185.62,7.16109254]
[1736584923135,149.59869991,185.65,185.64,7.16109254]
[1736584923330,149.59869991,185.7,185.65,2.6938]
[1736584923530,149.59869991,185.7,185.67,7.16109254]
[1736584923931,149.59869991,185.71,185.67,7.16109254]
[1736584924335,149.59869991,185.73,185.67,7.16109254]
[1736584924732,152.29139991,185.73,185.67,7.16109254]
[1736584930336,149.59869991,185.73,185.71,7.16109254]
[1736584930842,149.59869991,185.76,185.71,7.16109254]
[1736584931034,149.59869991,185.76,185.73,7.16109254]